lending/lending_fUSD_20250224
["ID","MTS","AMOUNT","RATE_DAILY","PERIOD"]
[354263195,1740372632225,-1072.29475651,0.00016268,2]
[354263197,1740372632234,-1118.34843955,0.00016268,2]
[354263199,1740372632244,-400.0,0.00016277,2]
[354263201,1740372632253,-432.55648003,0.00016305,2]
[354263203,1740372632262,-150.0,0.00016341,2]
[354263205,1740372632271,-510.0,0.00016395,2]
[354263207,1740372632280,-150.0,0.00016397,2]
[354263209,1740372632290,-1602.313,0.00016417,2]
[354263211,1740372632299,-151.47625918,0.00016417,2]
[354263213,1740372632309,-3546.69666359,0.00016418,2]
[354263215,1740372632318,-317.01289798,0.00016418,2]
[354263217,1740372632327,-559.536,0.00016418,2]
[354263219,1740372632336,-500.0,0.00016418,2]
[354263221,1740372632346,-1503.5042,0.00016418,2]
[354263223,1740372632356,-1000.0,0.00016418,2]
[354263225,1740372632365,-4000.0,0.0001642,2]
[354263227,1740372632374,-500.0,0.00016438,2]
[354263229,1740372632384,-150.0,0.00016482,2]
[354263231,1740372632394,-6642.8966466,0.00016498,2]
[354263233,1740372632405,-857.1033534,0.00016498,2]
[354263235,1740372632415,-160.16152089,0.000165,2]
[354263237,1740372632424,-269.31005074,0.000165,2]
[354263239,1740372632433,-570.88,0.00016507,2]
[354263241,1740372632443,-181.91635873,0.00016517,2]
[354263243,1740372632452,-500.0,0.00016517,2]
[354263245,1740372632461,-500.0,0.00016517,2]
[354263247,1740372632470,-502.40453908,0.00016517,2]
[354263249,1740372632479,-500.0,0.00016517,2]
[354263251,1740372632488,-504.36723991,0.00016517,2]
[354263253,1740372632497,-502.03853482,0.00016517,2]
[354263255,1740372632506,-500.0,0.00016517,2]
[354263257,1740372632515,-501.96117436,0.00016517,2]
[354263259,1740372632524,-500.0,0.00016517,2]
[354263261,1740372632533,-501.90630167,0.00016517,2]
[354263263,1740372632542,-500.0,0.00016517,2]
[354263265,1740372632551,-500.0,0.00016517,2]
[354263267,1740372632560,-500.0,0.00016517,2]
[354263269,1740372632570,-500.0,0.00016517,2]
[354263271,1740372632579,-500.0,0.00016517,2]
[354263273,1740372632587,-500.0,0.00016517,2]
[354263275,1740372632596,-500.0,0.00016517,2]
[354263276,1740372632605,-500.0,0.00016517,2]
[354263277,1740372632615,-501.08,0.00016517,2]
[354263278,1740372632625,-500.0,0.00016517,2]
[354263279,1740372632635,-904.95,0.00016517,2]
[354263280,1740372632645,-500.0,0.00016517,2]
[354263281,1740372632654,-500.0,0.00016517,2]
[354263282,1740372632663,-500.0,0.00016517,2]
[354263283,1740372632673,-500.0,0.00016517,2]
[354263284,1740372632682,-1201.92,0.00016517,2]
[354263285,1740372632691,-500.0,0.00016517,2]
[354263286,1740372632700,-500.0,0.00016517,2]
[354263287,1740372632709,-500.0,0.00016517,2]
[354263288,1740372632718,-500.0,0.00016517,2]
[354263289,1740372632727,-500.0,0.00016517,2]
[354263290,1740372632736,-500.0,0.00016517,2]
[354263291,1740372632745,-500.0,0.00016517,2]
[354263292,1740372632754,-500.0,0.00016517,2]
[354263293,1740372632763,-500.0,0.00016517,2]
[354263294,1740372632772,-500.0,0.00016517,2]
[354263295,1740372632781,-500.0,0.00016517,2]
[354263296,1740372632790,-500.0,0.00016517,2]
[354263297,1740372632799,-500.7398391,0.00016517,2]
[354263298,1740372632808,-500.0,0.00016517,2]
[354263299,1740372632817,-1649.75,0.00016517,2]
[354263300,1740372632826,-500.0,0.00016517,2]
[354263301,1740372632835,-510.93206945,0.00016517,2]
[354263302,1740372632844,-503.04378016,0.00016517,2]
[354263303,1740372632853,-406.53010916,0.00016517,2]
[354263304,1740372632866,-502.6275973,0.00016517,2]
[354263305,1740372632875,-636.1,0.00016517,2]
[354263306,1740372632885,-500.0,0.00016517,2]
[354263307,1740372632895,-500.0,0.00016517,2]
[354263308,1740372632904,-500.0,0.00016517,2]
[354263309,1740372632913,-500.0,0.00016517,2]
[354263310,1740372632922,-500.0,0.00016517,2]
[354263311,1740372632931,-1373.05,0.00016517,2]
[354263312,1740372632943,-500.0,0.00016517,2]
[354263313,1740372632952,-500.0,0.00016517,2]
[354263314,1740372632961,-500.0,0.00016517,2]
[354263315,1740372632971,-500.0,0.00016517,2]
[354263316,1740372632980,-1310.1,0.00016517,2]
[354263317,1740372632989,-500.0,0.00016517,2]
[354263318,1740372632998,-618.25,0.00016517,2]
[354263319,1740372633007,-1639.48,0.00016517,2]
[354263320,1740372633016,-500.0,0.00016517,2]
[354263321,1740372633025,-500.0,0.00016517,2]
[354263322,1740372633034,-802.92,0.00016517,2]
[354263323,1740372633043,-251.371413,0.00016517,2]
[354263324,1740372633052,-500.0,0.00016517,2]
[354263325,1740372633062,-500.0,0.00016517,2]
[354263326,1740372633071,-947.37,0.00016517,2]
[354263327,1740372633081,-500.0,0.00016517,2]
[354263328,1740372633091,-564.3,0.00016517,2]
[354263329,1740372633100,-500.0,0.00016517,2]
[354263330,1740372633109,-500.0,0.00016517,2]
[354263331,1740372633119,-500.0,0.00016517,2]
[354263332,1740372633128,-352.141376,0.00016517,2]
[354263333,1740372633139,-500.0,0.00016517,2]
[354263334,1740372633148,-1234.53,0.00016517,2]
[354263335,1740372633159,-500.0,0.00016517,2]
[354263336,1740372633169,-500.0,0.00016517,2]
[354263337,1740372633179,-993.07,0.00016517,2]
[354263338,1740372633188,-500.0,0.00016517,2]
[354263339,1740372633198,-539.23671295,0.00016517,2]
[354263340,1740372633207,-500.0,0.00016517,2]
[354263341,1740372633217,-500.0,0.00016517,2]
[354263342,1740372633227,-500.0,0.00016517,2]
[354263343,1740372633236,-500.0,0.00016517,2]
[354263344,1740372633246,-805.19,0.00016517,2]
[354263345,1740372633255,-399.50490039,0.00016517,2]
[354263346,1740372633265,-554.64,0.00016517,2]
[354263347,1740372633274,-500.0,0.00016517,2]
[354263348,1740372633285,-500.0,0.00016517,2]
[354263349,1740372633296,-513.35660094,0.00016517,2]
[354263350,1740372633306,-501.40401913,0.00016517,2]
[354263351,1740372633315,-500.0,0.00016517,2]
[354263352,1740372633325,-500.0,0.00016517,2]
[354263353,1740372633334,-662.26,0.00016517,2]
[354263354,1740372633343,-500.0,0.00016517,2]
[354263355,1740372633353,-500.0,0.00016517,2]
[354263356,1740372633363,-2602.54,0.00016517,2]
[354263357,1740372633372,-500.0,0.00016517,2]
[354263358,1740372633383,-881.54,0.00016517,2]
[354263359,1740372633392,-500.0,0.00016517,2]
[354263360,1740372633402,-500.0,0.00016517,2]
[354263361,1740372633411,-500.0,0.00016517,2]
[354263362,1740372633420,-500.0,0.00016517,2]
[354263363,1740372633429,-629.01,0.00016517,2]
[354263364,1740372633438,-922.42,0.00016517,2]
[354263365,1740372633448,-500.0,0.00016517,2]
[354263366,1740372633458,-500.0,0.00016517,2]
[354263367,1740372633467,-500.0,0.00016517,2]
[354263368,1740372633476,-500.0,0.00016517,2]
[354263369,1740372633486,-500.0,0.00016517,2]
[354263370,1740372633496,-897.33,0.00016517,2]
[354263371,1740372633505,-500.0,0.00016517,2]
[354263372,1740372633515,-500.0,0.00016517,2]
[354263373,1740372633523,-582.32480274,0.00016517,2]
[354263374,1740372633533,-500.0,0.00016517,2]
[354263375,1740372633543,-500.0,0.00016517,2]
[354263376,1740372633553,-500.0,0.00016517,2]
[354263377,1740372633562,-500.0,0.00016517,2]
[354263378,1740372633571,-500.0,0.00016517,2]
[354263379,1740372633581,-500.0,0.00016517,2]
[354263380,1740372633590,-519.71211457,0.00016517,2]
[354263381,1740372633600,-500.0,0.00016517,2]
[354263382,1740372633610,-500.0,0.00016517,2]
[354263383,1740372633619,-1051.45,0.00016517,2]
[354263384,1740372633629,-536.42,0.00016517,2]
[354263385,1740372633641,-500.0,0.00016517,2]
[354263386,1740372633651,-2136.52,0.00016517,2]
[354263387,1740372633660,-500.0,0.00016517,2]
[354263388,1740372633670,-503.07552932,0.00016517,2]
[354263389,1740372633679,-500.0,0.00016517,2]
[354263390,1740372633688,-500.0,0.00016517,2]
[354263391,1740372633698,-500.0,0.00016517,2]
[354263392,1740372633708,-500.0,0.00016517,2]
[354263393,1740372633717,-641.39,0.00016517,2]
[354263394,1740372633727,-1505.95,0.00016517,2]
[354263395,1740372633736,-1229.13,0.00016517,2]
[354263396,1740372633747,-500.0,0.00016517,2]
[354263397,1740372633756,-500.0,0.00016517,2]
[354263398,1740372633765,-947.54,0.00016517,2]
[354263399,1740372633774,-1479.24,0.00016517,2]
[354263400,1740372633783,-502.95119828,0.00016517,2]
[354263401,1740372633793,-500.0,0.00016517,2]
[354263402,1740372633803,-1061.26,0.00016517,2]
[354263403,1740372633812,-960.96,0.00016517,2]
[354263404,1740372633822,-500.0,0.00016517,2]
[354263405,1740372633831,-500.0,0.00016517,2]
[354263406,1740372633840,-1542.89,0.00016517,2]
[354263407,1740372633850,-582.95,0.00016517,2]
[354263408,1740372633861,-500.0,0.00016517,2]
[354263409,1740372633870,-501.94135267,0.00016517,2]
[354263410,1740372633879,-728.51,0.00016517,2]
[354263411,1740372633890,-500.0,0.00016517,2]
[354263412,1740372633901,-561.25220787,0.00016517,2]
[354263413,1740372633910,-551.38,0.00016517,2]
[354263414,1740372633919,-1811.4,0.00016517,2]
[354263415,1740372633928,-500.0,0.00016517,2]
[354263416,1740372633939,-1393.8,0.00016517,2]
[354263417,1740372633948,-500.0,0.00016517,2]
[354263418,1740372633957,-500.0,0.00016517,2]
[354263419,1740372633966,-506.31055586,0.00016517,2]
[354263420,1740372633975,-1706.36,0.00016517,2]
[354263421,1740372633984,-500.0,0.00016517,2]
[354263422,1740372633993,-3080.94,0.00016517,2]
[354263423,1740372634003,-500.0,0.00016517,2]
[354263424,1740372634012,-500.0,0.00016517,2]
[354263425,1740372634022,-500.0,0.00016517,2]
[354263426,1740372634032,-500.0,0.00016517,2]
[354263427,1740372634042,-522.13,0.00016517,2]
[354263428,1740372634051,-500.0,0.00016517,2]
[354263429,1740372634062,-500.0,0.00016517,2]
[354263430,1740372634071,-1239.96,0.00016517,2]
[354263431,1740372634081,-500.0,0.00016517,2]
[354263432,1740372634091,-500.0,0.00016517,2]
[354263433,1740372634100,-500.0,0.00016517,2]
[354263434,1740372634110,-506.15513354,0.00016517,2]
[354263435,1740372634119,-1522.38,0.00016517,2]
[354263436,1740372634130,-357.60647001,0.00016517,2]
[354263437,1740372634140,-578.05,0.00016517,2]
[354263438,1740372634150,-500.0,0.00016517,2]
[354263439,1740372634363,-500.0,0.00016517,2]
[354263440,1740372634374,-1310.74,0.00016517,2]
[354263441,1740372634384,-500.0,0.00016517,2]
[354263442,1740372634394,-500.0,0.00016517,2]
[354263443,1740372634403,-501.41654875,0.00016517,2]
[354263444,1740372634412,-1318.59,0.00016517,2]
[354263445,1740372634422,-603.59,0.00016517,2]
[354263446,1740372634432,-500.0,0.00016517,2]
[354263447,1740372634441,-1685.85,0.00016517,2]
[354263448,1740372634450,-500.0,0.00016517,2]
[354263449,1740372634459,-879.87,0.00016517,2]
[354263450,1740372634469,-505.9902376,0.00016517,2]
[354263451,1740372634478,-504.25330644,0.00016517,2]
[354263452,1740372634487,-500.0,0.00016517,2]
[354263453,1740372634496,-492.35711781,0.00016517,2]
[354263454,1740372634505,-582.83,0.00016517,2]
[354263455,1740372634515,-500.0,0.00016517,2]
[354263456,1740372634524,-500.0,0.00016517,2]
[354263457,1740372634533,-1128.05,0.00016517,2]
[354263458,1740372634542,-500.0,0.00016517,2]
[354263459,1740372634551,-1511.78,0.00016517,2]
[354263460,1740372634560,-2329.5,0.00016517,2]
[354263461,1740372634569,-500.0,0.00016517,2]
[354263462,1740372634578,-1532.96,0.00016517,2]
[354263463,1740372634587,-919.79,0.00016517,2]
[354263464,1740372634597,-535.27202155,0.00016517,2]
[354263465,1740372634607,-515.59,0.00016517,2]
[354263466,1740372634616,-500.0,0.00016517,2]
[354263467,1740372634625,-948.98,0.00016517,2]
[354263468,1740372634634,-500.0,0.00016517,2]
[354263469,1740372634643,-500.0,0.00016517,2]
[354263470,1740372634652,-1337.58,0.00016517,2]
[354263471,1740372634661,-500.0,0.00016517,2]
[354263472,1740372634670,-162.17655379,0.00016517,2]
[354263473,1740372634678,-1000.0,0.00016517,2]
[354263474,1740372634688,-500.0,0.00016517,2]
[354263475,1740372634697,-808.48,0.00016517,2]
[354263476,1740372634705,-1518.91,0.00016517,2]
[354263477,1740372634714,-500.0,0.00016517,2]
[354263478,1740372634723,-500.0,0.00016517,2]
[354263479,1740372634732,-1308.23,0.00016517,2]
[354263480,1740372634740,-500.0,0.00016517,2]
[354263481,1740372634749,-500.0,0.00016517,2]
[354263482,1740372634758,-1210.22,0.00016517,2]
[354263483,1740372634767,-500.0,0.00016517,2]
[354263484,1740372634775,-1935.58,0.00016517,2]
[354263485,1740372634784,-500.0,0.00016517,2]
[354263486,1740372634793,-500.0,0.00016517,2]
[354263487,1740372634801,-528.42,0.00016517,2]
[354263488,1740372634810,-1641.96,0.00016517,2]
[354263489,1740372634819,-500.0,0.00016517,2]
[354263490,1740372634828,-500.0,0.00016517,2]
[354263491,1740372634837,-500.0,0.00016518,2]
[354263492,1740372634845,-500.0,0.00016518,2]
[354263493,1740372634855,-500.0,0.00016518,2]
[354263494,1740372634867,-500.0,0.00016518,2]
[354263495,1740372634875,-500.0,0.00016518,2]
[354263496,1740372634885,-242.69715916,0.00016518,2]
[354263497,1740372634894,-500.0,0.00016518,2]
[354263498,1740372634903,-500.0,0.00016518,2]
[354263499,1740372634912,-500.0,0.00016518,2]
[354263500,1740372634922,-500.0,0.00016518,2]
[354263501,1740372634931,-500.0,0.00016518,2]
[354263502,1740372634941,-500.0,0.00016518,2]
[354263503,1740372634950,-580.40545739,0.00016518,2]
[354263504,1740372634960,-500.0,0.00016518,2]
[354263505,1740372634969,-500.0,0.00016518,2]
[354263506,1740372634979,-500.0,0.00016518,2]
[354263507,1740372634988,-500.0,0.00016518,2]
[354263508,1740372634998,-500.0,0.00016518,2]
[354263509,1740372635007,-500.0,0.00016518,2]
[354263510,1740372635017,-500.0,0.00016518,2]
[354263511,1740372635026,-500.0,0.00016518,2]
[354263512,1740372635035,-500.0,0.00016518,2]
[354263513,1740372635044,-502.65124587,0.00016518,2]
[354263514,1740372635053,-500.0,0.00016518,2]
[354263515,1740372635063,-500.0,0.00016518,2]
[354263516,1740372635072,-500.0,0.00016518,2]
[354263517,1740372635081,-281.30543203,0.00016518,2]
[354263518,1740372635090,-500.0,0.00016518,2]
[354263519,1740372635099,-500.0,0.00016518,2]
[354263520,1740372635108,-500.0,0.00016518,2]
[354263521,1740372635117,-500.0,0.00016518,2]
[354263522,1740372635126,-500.0,0.00016518,2]
[354263523,1740372635135,-502.94799798,0.00016518,2]
[354263524,1740372635144,-500.0,0.00016518,2]
[354263525,1740372635153,-500.0,0.00016518,2]
[354263526,1740372635162,-500.0,0.00016518,2]
[354263527,1740372635172,-500.0,0.00016518,2]
[354263528,1740372635181,-503.18555389,0.00016518,2]
[354263529,1740372635190,-547.75,0.00016518,2]
[354263530,1740372635199,-504.0628096,0.00016518,2]
[354263531,1740372635208,-500.0,0.00016518,2]
[354263532,1740372635217,-500.0,0.00016518,2]
[354263533,1740372635227,-500.0,0.00016518,2]
[354263534,1740372635236,-500.0,0.00016518,2]
[354263535,1740372635246,-500.0,0.00016518,2]
[354263536,1740372635258,-169.4035171,0.00016518,2]
[354263537,1740372635267,-501.95689106,0.00016518,2]
[354263538,1740372635277,-548.0,0.00016518,2]
[354263539,1740372635286,-503.80541652,0.00016518,2]
[354263540,1740372635295,-597.08,0.00016518,2]
[354263541,1740372635304,-549.08,0.00016518,2]
[354263542,1740372635313,-500.0,0.00016518,2]
[354263543,1740372635323,-500.0,0.00016518,2]
[354263544,1740372635332,-501.91685965,0.00016518,2]
[354263545,1740372635341,-500.0,0.00016518,2]
[354263546,1740372635350,-500.0,0.00016518,2]
[354263547,1740372635359,-500.0,0.00016518,2]
[354263548,1740372635368,-500.0,0.00016518,2]
[354263549,1740372635378,-502.74328016,0.00016518,2]
[354263550,1740372635388,-500.0,0.00016518,2]
[354263551,1740372635397,-503.86122252,0.00016518,2]
[354263552,1740372635407,-501.11256496,0.00016518,2]
[354263553,1740372635416,-526.86252439,0.00016518,2]
[354263554,1740372635425,-501.89329771,0.00016518,2]
[354263555,1740372635434,-500.0,0.00016518,2]
[354263556,1740372635443,-501.0119153,0.00016518,2]
[354263557,1740372635452,-500.0,0.00016518,2]
[354263558,1740372635461,-500.0,0.00016518,2]
[354263559,1740372635470,-576.89,0.00016518,2]
[354263560,1740372635479,-500.0,0.00016518,2]
[354263561,1740372635488,-500.0,0.00016518,2]
[354263562,1740372635497,-655.09,0.00016518,2]
[354263563,1740372635506,-500.0,0.00016518,2]
[354263564,1740372635515,-501.5552183,0.00016518,2]
[354263565,1740372635524,-500.0,0.00016518,2]
[354263566,1740372635533,-503.87858684,0.00016518,2]
[354263567,1740372635543,-510.07132018,0.00016518,2]
[354263568,1740372635551,-500.0,0.00016518,2]
[354263569,1740372635561,-500.0,0.00016518,2]
[354263570,1740372635569,-500.0,0.00016518,2]
[354263571,1740372635578,-501.85073398,0.00016518,2]
[354263572,1740372635588,-500.0,0.00016518,2]
[354263573,1740372635597,-500.0,0.00016518,2]
[354263574,1740372635606,-500.0,0.00016518,2]
[354263575,1740372635615,-503.51380672,0.00016518,2]
[354263576,1740372635624,-500.0,0.00016518,2]
[354263577,1740372635634,-500.0,0.00016518,2]
[354263578,1740372635643,-617.26,0.00016518,2]
[354263579,1740372635652,-502.31024239,0.00016518,2]
[354263580,1740372635662,-503.00220689,0.00016518,2]
[354263581,1740372635671,-500.0,0.00016518,2]
[354263582,1740372635680,-503.88698575,0.00016518,2]
[354263583,1740372635690,-500.0,0.00016518,2]
[354263584,1740372635699,-500.0,0.00016518,2]
[354263585,1740372635708,-500.0,0.00016518,2]
[354263586,1740372635717,-274.42,0.00016518,2]
[354263587,1740372635727,-500.0,0.00016518,2]
[354263588,1740372635736,-500.0,0.00016518,2]
[354263589,1740372635745,-500.0,0.00016518,2]
[354263590,1740372635754,-500.0,0.00016518,2]
[354263591,1740372635763,-500.0,0.00016518,2]
[354263592,1740372635772,-500.0,0.00016518,2]
[354263593,1740372635781,-502.52677882,0.00016518,2]
[354263594,1740372635790,-3.64835557,0.00016518,2]
[354263595,1740372635809,-496.35164443,0.00016518,2]
[354263596,1740372635818,-500.0,0.00016518,2]
[354263597,1740372635827,-502.64903495,0.00016518,2]
[354263598,1740372635837,-500.0,0.00016518,2]
[354263599,1740372635846,-500.0,0.00016518,2]
[354263600,1740372635858,-517.17,0.00016518,2]
[354263601,1740372635868,-356.01097493,0.00016518,2]
[354263602,1740372635877,-604.89,0.00016518,2]
[354263603,1740372635888,-503.74820835,0.00016518,2]
[354263604,1740372635897,-500.0,0.00016518,2]
[354263605,1740372635907,-500.0,0.00016518,2]
[354263606,1740372635916,-500.0,0.00016518,2]
[354263607,1740372635925,-521.07921224,0.00016518,2]
[354263608,1740372635934,-500.0,0.00016518,2]
[354263609,1740372635945,-500.0,0.00016518,2]
[354263610,1740372635955,-500.0,0.00016518,2]
[354263611,1740372635964,-524.57678547,0.00016518,2]
[354263612,1740372635973,-500.0,0.00016518,2]
[354263613,1740372635982,-502.93081804,0.00016518,2]
[354263614,1740372635992,-575.25,0.00016518,2]
[354263615,1740372636001,-500.0,0.00016518,2]
[354263616,1740372636010,-500.0,0.00016518,2]
[354263617,1740372636019,-500.0,0.00016518,2]
[354263618,1740372636028,-514.56080116,0.00016518,2]
[354263619,1740372636038,-500.0,0.00016518,2]
[354263620,1740372636047,-503.33679191,0.00016518,2]
[354263621,1740372636056,-500.0,0.00016518,2]
[354263622,1740372636066,-503.3408777,0.00016518,2]
[354263623,1740372636075,-500.0,0.00016518,2]
[354263624,1740372636085,-530.29,0.00016518,2]
[354263625,1740372636095,-500.0,0.00016518,2]
[354263626,1740372636104,-500.0,0.00016518,2]
[354263627,1740372636114,-500.0,0.00016518,2]
[354263628,1740372636124,-500.0,0.00016518,2]
[354263629,1740372636135,-500.0,0.00016518,2]
[354263630,1740372636144,-500.0,0.00016518,2]
[354263631,1740372636153,-500.0,0.00016518,2]
[354263632,1740372636162,-500.0,0.00016518,2]
[354263633,1740372636171,-500.0,0.00016518,2]
[354263634,1740372636181,-614.8,0.00016518,2]
[354263635,1740372636190,-500.0,0.00016518,2]
[354263636,1740372636200,-500.0,0.00016518,2]
[354263637,1740372636210,-500.0,0.00016518,2]
[354263638,1740372636218,-513.41,0.00016518,2]
[354263639,1740372636227,-500.0,0.00016518,2]
[354263640,1740372636236,-501.70250141,0.00016518,2]
[354263641,1740372636245,-500.0,0.00016518,2]
[354263642,1740372636254,-500.0,0.00016518,2]
[354263643,1740372636263,-501.60038539,0.00016518,2]
[354263644,1740372636272,-500.0,0.00016518,2]
[354263645,1740372636281,-500.0,0.00016518,2]
[354263646,1740372636290,-500.0,0.00016518,2]
[354263647,1740372636299,-500.0,0.00016518,2]
[354263648,1740372636308,-500.0,0.00016518,2]
[354263649,1740372636317,-500.0,0.00016518,2]
[354263650,1740372636326,-500.0,0.00016518,2]
[354263651,1740372636335,-335.30196401,0.00016518,2]
[354263652,1740372636376,-500.0,0.00016517,2]
[354263653,1740372636387,-500.0,0.00016517,2]
[354263654,1740372636396,-159.01481947,0.00016517,2]
[354263655,1740372636405,-500.0,0.00016517,2]
[354263656,1740372636414,-164.69803599,0.00016518,2]
[354263657,1740372636424,-500.0,0.00016518,2]
[354263658,1740372636433,-500.0,0.00016518,2]
[354263659,1740372636442,-503.27914829,0.00016518,2]
[354263660,1740372636451,-500.0,0.00016518,2]
[354263661,1740372636460,-500.0,0.00016518,2]
[354263662,1740372636469,-500.0,0.00016518,2]
[354263663,1740372636478,-101.03109625,0.00016518,2]
[354263678,1740372637925,-3003.18894918,0.00016418,2]
[354263679,1740372637935,-500.0,0.00016517,2]
[354263680,1740372637945,-561.6250712,0.00016517,2]
[354263681,1740372637954,-111.40504898,0.00016517,2]
[354263682,1740372637965,-393.56651772,0.00016517,2]
[354263683,1740372637974,-61.62226084,0.00016517,2]
[354263684,1740372637985,-441.44065595,0.00016517,2]
[354263685,1740372637994,-500.0,0.00016517,2]
[354263686,1740372638003,-398.96890375,0.00016518,2]
[354263687,1740372638013,-500.0,0.00016518,2]
[354263688,1740372638022,-500.0,0.00016518,2]
[354263689,1740372638032,-500.0,0.00016518,2]
[354263690,1740372638042,-500.0,0.00016518,2]
[354263691,1740372638052,-500.0,0.00016518,2]
[354263692,1740372638062,-500.0,0.00016518,2]
[354263693,1740372638072,-169.50084548,0.00016518,2]
[354263694,1740372638182,-358.93050527,0.00016518,2]
[354263695,1740372638192,-500.0,0.00016518,2]
[354263696,1740372638201,-502.61691696,0.00016518,2]
[354263697,1740372638210,-500.0,0.00016518,2]
[354263698,1740372638219,-500.0,0.00016518,2]
[354263699,1740372638228,-502.93185957,0.00016518,2]
[354263700,1740372638238,-500.0,0.00016518,2]
[354263701,1740372638247,-500.0,0.00016518,2]
[354263702,1740372638256,-500.0,0.00016518,2]
[354263703,1740372638265,-500.0,0.00016518,2]
[354263704,1740372638274,-503.39659641,0.00016518,2]
[354263705,1740372638283,-500.0,0.00016518,2]
[354263706,1740372638292,-500.0,0.00016518,2]
[354263707,1740372638301,-501.87625952,0.00016518,2]
[354263708,1740372638310,-535.83,0.00016518,2]
[354263709,1740372638319,-500.0,0.00016518,2]
[354263710,1740372638328,-576.96,0.00016518,2]
[354263711,1740372638337,-501.71109495,0.00016518,2]
[354263712,1740372638347,-604.72,0.00016518,2]
[354263713,1740372638356,-500.0,0.00016518,2]
[354263714,1740372638366,-500.0,0.00016518,2]
[354263715,1740372638375,-498.69169872,0.00016518,2]
[354263716,1740372638384,-500.0,0.00016518,2]
[354263717,1740372638394,-500.0,0.00016518,2]
[354263718,1740372638403,-500.0,0.00016518,2]
[354263719,1740372638412,-500.0,0.00016518,2]
[354263720,1740372638421,-500.0,0.00016518,2]
[354263721,1740372638430,-500.0,0.00016518,2]
[354263722,1740372638439,-500.0,0.00016518,2]
[354263723,1740372638448,-500.0,0.00016518,2]
[354263724,1740372638456,-500.0,0.00016518,2]
[354263725,1740372638465,-500.0,0.00016518,2]
[354263726,1740372638474,-500.0,0.00016518,2]
[354263727,1740372638483,-506.8,0.00016518,2]
[354263728,1740372638492,-500.0,0.00016518,2]
[354263729,1740372638501,-500.0,0.00016518,2]
[354263730,1740372638510,-502.55435044,0.00016518,2]
[354263731,1740372638519,-500.0,0.00016518,2]
[354263732,1740372638528,-500.0,0.00016518,2]
[354263733,1740372638537,-500.0,0.00016518,2]
[354263734,1740372638547,-500.0,0.00016518,2]
[354263735,1740372638556,-500.0,0.00016518,2]
[354263736,1740372638565,-514.20335035,0.00016518,2]
[354263737,1740372638574,-503.5695411,0.00016518,2]
[354263738,1740372638583,-500.0,0.00016518,2]
[354263739,1740372638593,-545.85,0.00016518,2]
[354263740,1740372638602,-501.63022813,0.00016518,2]
[354263741,1740372638611,-576.44,0.00016518,2]
[354263742,1740372638621,-501.67951004,0.00016518,2]
[354263743,1740372638630,-501.85119741,0.00016518,2]
[354263744,1740372638640,-502.72085351,0.00016518,2]
[354263745,1740372638651,-501.93846491,0.00016518,2]
[354263746,1740372638662,-500.0,0.00016518,2]
[354263747,1740372638674,-500.0,0.00016518,2]
[354263748,1740372638683,-615.1,0.00016518,2]